fUSD/lending_fUSD_20240805
["ID","MTS","AMOUNT","RATE_DAILY","PERIOD"]
[334220484,1722844129420,-1551.67,0.00044109,60]
[334220485,1722844129461,-1594.4,0.00044109,60]
[334220486,1722844129502,-2982.8,0.00044109,60]
[334220487,1722844129542,-500.0,0.00044109,60]
[334220488,1722844129582,-724.03,0.00044109,60]
[334220489,1722844129620,-500.0,0.00044109,60]
[334220490,1722844129662,-5643.31,0.00044109,60]
[334220491,1722844129701,-1490.68,0.00044109,60]
[334220492,1722844129741,-2411.96,0.00044109,60]
[334220493,1722844129783,-1691.64,0.00044109,60]
[334220494,1722844129823,-571.4,0.00044109,60]
[334220495,1722844129866,-5579.05,0.00044109,60]
[334220496,1722844129911,-1240.95,0.00044109,60]
[334220497,1722844129952,-453.74804479,0.00044109,60]
[334220498,1722844130217,-500.0,0.00044109,60]
[334220499,1722844130261,-500.0,0.00044109,60]
[334220500,1722844130303,-500.0,0.00044109,60]
[334220501,1722844130345,-3652.18,0.00044109,60]
[334220502,1722844130392,-5016.19,0.00044109,60]
[334220503,1722844130436,-500.0,0.00044109,60]
[334220504,1722844130478,-500.0,0.00044109,60]
[334220505,1722844130518,-500.0,0.00044109,60]
[334220506,1722844130560,-7025.34,0.00044109,60]
[334220507,1722844130602,-500.0,0.00044109,60]
[334220508,1722844130646,-500.0,0.00044109,60]
[334220509,1722844130690,-579.57,0.00044109,60]
[334220510,1722844130733,-1406.22,0.00044109,60]
[334220511,1722844130780,-500.0,0.00044109,60]
[334220512,1722844130823,-3868.7,0.00044109,60]
[334220513,1722844130871,-735.23,0.00044109,60]
[334220514,1722844130914,-500.0,0.00044109,60]
[334220515,1722844130958,-500.0,0.00044109,60]
[334220516,1722844131001,-2230.38,0.00044109,60]
[334220517,1722844131043,-825.84,0.00044109,60]
[334220518,1722844131087,-4726.84,0.00044109,60]
[334220519,1722844131143,-500.0,0.00044109,60]
[334220520,1722844131185,-8538.86,0.00044109,60]
[334220521,1722844131226,-7586.45,0.00044109,60]
[334220522,1722844131267,-824.94,0.00044109,60]
[334220523,1722844131308,-1618.35,0.00044109,60]
[334220524,1722844131352,-3040.72,0.00044109,60]
[334220525,1722844131394,-2016.71,0.00044109,60]
[334220526,1722844131438,-2769.02,0.00044109,60]
[334220527,1722844131479,-500.67128744,0.00044109,60]
[334220528,1722844131520,-4162.2,0.00044109,60]
[334220529,1722844131561,-500.0,0.00044109,60]
[334220530,1722844131602,-500.0,0.00044109,60]
[334220531,1722844131642,-3492.83,0.00044109,60]
[334220532,1722844131681,-500.0,0.00044109,60]
[334220533,1722844131720,-1709.17,0.00044109,60]
[334220534,1722844131762,-2868.0,0.00044109,60]
[334220535,1722844131802,-1047.93,0.00044109,60]
[334220536,1722844131844,-500.0,0.00044109,60]
[334220537,1722844131890,-7310.49,0.00044109,60]
[334220538,1722844131932,-500.0,0.00044109,60]
[334220539,1722844131978,-500.0,0.00044109,60]
[334220540,1722844132022,-4368.58,0.00044109,60]
[334220541,1722844132064,-3390.96,0.00044109,60]
[334220542,1722844132107,-500.0,0.00044109,60]
[334220543,1722844132154,-15103.54,0.00044109,60]
[334220544,1722844132197,-1720.87,0.00044109,60]
[334220545,1722844132238,-1394.86,0.00044109,60]
[334220546,1722844132279,-7124.04,0.00044109,60]
[334220547,1722844132318,-596.78,0.00044109,60]
[334220548,1722844132360,-3300.66,0.00044109,60]
[334220549,1722844132401,-534.41,0.00044109,60]
[334220550,1722844132441,-1458.0,0.00044109,60]
[334220551,1722844132479,-785.7,0.00044109,60]
[334220552,1722844132519,-500.0,0.00044109,60]
[334220553,1722844132558,-6415.11,0.00044109,60]
[334220554,1722844132597,-500.0,0.00044109,60]
[334220555,1722844132639,-500.0,0.00044109,60]
[334220556,1722844132677,-500.0,0.00044109,60]
[334220557,1722844132715,-804.27,0.00044109,60]
[334220558,1722844132755,-692.77,0.00044109,60]
[334220559,1722844132796,-17611.88,0.00044109,60]
[334220560,1722844132837,-2720.48,0.00044109,60]
[334220561,1722844132879,-4482.99,0.00044109,60]
[334220562,1722844132924,-3631.46,0.00044109,60]
[334220563,1722844132967,-500.0,0.00044109,60]
[334220564,1722844133010,-500.0,0.00044109,60]
[334220565,1722844133052,-500.0,0.00044109,60]
[334220566,1722844133093,-545.35,0.00044109,60]
[334220567,1722844133136,-2455.4,0.00044109,60]
[334220568,1722844133178,-728.33,0.00044109,60]
[334220569,1722844133219,-1906.54,0.00044109,60]
[334220570,1722844133257,-1801.04,0.00044109,60]
[334220571,1722844133294,-884.93,0.00044109,60]
[334220572,1722844133331,-500.0,0.00044109,60]
[334220573,1722844133370,-639.44,0.00044109,60]
[334220574,1722844133409,-500.0,0.00044109,60]
[334220575,1722844133448,-500.0,0.00044109,60]
[334220576,1722844133488,-500.0,0.00044109,60]
[334220577,1722844133526,-3887.62,0.00044109,60]
[334220578,1722844133565,-1985.85,0.00044109,60]
[334220579,1722844133605,-5630.35,0.00044109,60]
[334220580,1722844133648,-2205.72,0.00044109,60]
[334220581,1722844133691,-500.0,0.00044109,60]
[334220582,1722844133733,-707.01,0.00044109,60]
[334220583,1722844133777,-691.76,0.00044109,60]
[334220584,1722844133820,-500.0,0.00044109,60]
[334220585,1722844133863,-500.0,0.00044109,60]
[334220586,1722844133904,-500.0,0.00044109,60]
[334220587,1722844133945,-725.62,0.00044109,60]
[334220588,1722844133987,-290.14123626,0.00044109,60]
[334220589,1722844134028,-500.0,0.00044109,60]
[334220590,1722844134070,-500.0,0.00044109,60]
[334220591,1722844134113,-847.23,0.00044109,60]
[334220592,1722844134156,-500.0,0.00044109,60]
[334220593,1722844134199,-500.0,0.00044109,60]
[334220594,1722844134240,-3110.41,0.00044109,60]
[334220595,1722844134280,-390.23195008,0.00044109,60]
[334220596,1722844134320,-500.0,0.00044109,60]
[334220597,1722844134361,-500.0,0.00044109,60]
[334220598,1722844134404,-1782.34,0.00044109,60]
[334220599,1722844134448,-528.7,0.00044109,60]
[334220600,1722844134490,-500.0,0.00044109,60]
[334220601,1722844134748,-517.1,0.00044109,60]
[334220602,1722844134789,-1247.12,0.00044109,60]
[334220603,1722844134830,-500.0,0.00044109,60]
[334220604,1722844134872,-524.95731552,0.00044109,60]
[334220605,1722844134914,-1523.81,0.00044109,60]
[334220606,1722844134956,-1076.07,0.00044109,60]
[334220607,1722844134997,-2766.63,0.00044109,60]
[334220608,1722844135040,-2040.45,0.00044109,60]
[334220609,1722844135085,-500.0,0.00044109,60]
[334220610,1722844135127,-1399.31,0.00044109,60]
[334220611,1722844135169,-4562.1,0.00044109,60]
[334220612,1722844135209,-500.0,0.00044109,60]
[334220613,1722844135249,-985.64,0.00044109,60]
[334220614,1722844135288,-500.0,0.00044109,60]
[334220615,1722844135325,-500.0,0.00044109,60]
[334220616,1722844135365,-4657.12,0.00044109,60]
[334220617,1722844135406,-500.0,0.00044109,60]
[334220618,1722844135446,-10748.86,0.00044109,60]
[334220619,1722844135484,-8930.26,0.00044109,60]
[334220620,1722844135522,-500.0,0.00044109,60]
[334220621,1722844135561,-1286.75,0.00044109,60]
[334220622,1722844135598,-2181.61,0.00044109,60]
[334220623,1722844135637,-500.0,0.00044109,60]
[334220624,1722844135677,-500.0,0.00044109,60]
[334220625,1722844135718,-500.0,0.00044109,60]
[334220626,1722844135760,-4897.88,0.00044109,60]
[334220627,1722844135804,-500.0,0.00044109,60]
[334220628,1722844135848,-1667.02,0.00044109,60]
[334220629,1722844135892,-2301.81,0.00044109,60]
[334220630,1722844135935,-500.0,0.00044109,60]
[334220631,1722844135978,-500.0,0.00044109,60]
[334220632,1722844136034,-2420.28,0.00044109,60]
[334220633,1722844136077,-500.0,0.00044109,60]
[334220634,1722844136120,-500.0,0.00044109,60]
[334220635,1722844136163,-1246.49,0.00044109,60]
[334220636,1722844136206,-500.0,0.00044109,60]
[334220637,1722844136248,-500.0,0.00044109,60]
[334220638,1722844136291,-500.0,0.00044109,60]
[334220639,1722844136337,-23439.12,0.00044109,60]
[334220640,1722844136382,-19736.54,0.00044109,60]
[334220641,1722844136427,-500.0,0.00044109,60]
[334220642,1722844136466,-500.0,0.00044109,60]
[334220643,1722844136506,-2759.48,0.00044109,60]
[334220644,1722844136547,-1049.1,0.00044109,60]
[334220645,1722844136588,-2719.05,0.00044109,60]
[334220646,1722844136628,-500.0,0.00044109,60]
[334220647,1722844136669,-6755.14,0.00044109,60]
[334220648,1722844136709,-500.0,0.00044109,60]
[334220649,1722844136749,-500.0,0.00044109,60]
[334220650,1722844136792,-6109.96,0.00044109,60]
[334220651,1722844136833,-500.0,0.00044109,60]
[334220652,1722844136875,-500.0,0.00044109,60]
[334220653,1722844136915,-500.0,0.00044109,60]
[334220654,1722844136957,-1044.39,0.00044109,60]
[334220655,1722844136998,-500.0,0.00044109,60]
[334220656,1722844137041,-500.0,0.00044109,60]
[334220657,1722844137094,-1029.22,0.00044109,60]
[334220658,1722844137152,-2915.91,0.00044109,60]
[334220659,1722844137219,-500.0,0.00044109,60]
[334220660,1722844137285,-973.24,0.00044109,60]
[334220661,1722844137344,-1904.51,0.00044109,60]
[334220662,1722844137408,-500.0,0.00044109,60]
[334220663,1722844137462,-972.76,0.00044109,60]
[334220664,1722844137520,-2207.89,0.00044109,60]
[334220665,1722844137577,-7612.64,0.00044109,60]
[334220666,1722844137631,-1204.14,0.00044109,60]
[334220667,1722844137684,-722.98,0.00044109,60]
[334220668,1722844137739,-950.18,0.00044109,60]
[334220669,1722844137795,-500.0,0.00044109,60]
[334220670,1722844137850,-500.0,0.00044109,60]
[334220671,1722844137908,-2654.38,0.00044109,60]
[334220672,1722844137964,-500.0,0.00044109,60]
[334220673,1722844138024,-1350.71,0.00044109,60]
[334220674,1722844138081,-500.0,0.00044109,60]
[334220675,1722844138141,-4543.71,0.00044109,60]
[334220676,1722844138195,-500.0,0.00044109,60]
[334220677,1722844138248,-500.0,0.00044109,60]
[334220678,1722844138304,-1073.31,0.00044109,60]
[334220679,1722844138367,-815.44,0.00044109,60]
[334220680,1722844138426,-35602.99,0.00044109,60]
[334220681,1722844138484,-2232.06,0.00044109,60]
[334220682,1722844138544,-500.0,0.00044109,60]
[334220683,1722844138603,-500.0,0.00044109,60]
[334220684,1722844138662,-2355.5,0.00044109,60]
[334220685,1722844138721,-5731.34,0.00044109,60]
[334220686,1722844138778,-999.95,0.00044109,60]
[334220687,1722844138835,-500.0,0.00044109,60]
[334220688,1722844138891,-3551.44,0.00044109,60]
[334220689,1722844138947,-1252.42,0.00044109,60]
[334220690,1722844139005,-500.0,0.00044109,60]
[334220691,1722844139065,-500.0,0.00044109,60]
[334220692,1722844139124,-689.7,0.00044109,60]
[334220693,1722844139185,-5012.01,0.00044109,60]
[334220694,1722844139245,-500.0,0.00044109,60]
[334220695,1722844139301,-500.0,0.00044109,60]
[334220696,1722844139357,-1927.45,0.00044109,60]
[334220697,1722844139412,-4228.37,0.00044109,60]
[334220698,1722844139467,-500.0,0.00044109,60]
[334220699,1722844139520,-500.0,0.00044109,60]
[334220700,1722844139575,-500.0,0.00044109,60]
[334220701,1722844139632,-263.33344345,0.00044109,60]
[334220702,1722844139688,-13371.27,0.00044109,60]
[334220703,1722844139746,-5000.0,0.00044109,120]
[334220704,1722844139808,-573.1855998,0.00044109,60]
[334220705,1722844139868,-798.42,0.00044109,60]
[334220706,1722844139925,-500.0,0.00044109,60]
[334220707,1722844139986,-4811.77,0.00044109,60]
[334220708,1722844140044,-2666.72,0.00044109,60]
[334220709,1722844140102,-500.0,0.00044109,60]
[334220710,1722844140159,-500.0,0.00044109,60]
[334220711,1722844140216,-982.02,0.00044109,60]
[334220712,1722844140271,-500.0,0.00044109,60]
[334220713,1722844140328,-4155.7,0.00044109,60]
[334220714,1722844140386,-500.0,0.00044109,60]
[334220715,1722844140440,-500.0,0.00044109,60]
[334220716,1722844140840,-10481.84,0.00044109,60]
[334220717,1722844140889,-853.32,0.00044109,60]
[334220718,1722844140931,-500.0,0.00044109,60]
[334220719,1722844140972,-515.63,0.00044109,60]
[334220720,1722844141014,-2311.37,0.00044109,60]
[334220721,1722844141054,-628.75,0.00044109,60]
[334220722,1722844141094,-500.0,0.00044109,60]
[334220723,1722844141136,-6436.58,0.00044109,60]
[334220724,1722844141178,-1077.38,0.00044109,60]
[334220725,1722844141220,-500.0,0.00044109,60]
[334220726,1722844141260,-500.0,0.00044109,60]
[334220727,1722844141299,-667.09,0.00044109,60]
[334220728,1722844141339,-500.0,0.00044109,60]
[334220729,1722844141383,-1311.27,0.00044109,60]
[334220730,1722844141426,-3775.88,0.00044109,60]
[334220731,1722844141468,-171.03479117,0.00044109,60]
[334220732,1722844141509,-2022.76,0.00044109,60]
[334220733,1722844141547,-833.07,0.00044109,60]
[334220734,1722844141585,-1082.46,0.00044109,60]
[334220735,1722844141625,-748.5,0.00044109,60]
[334220736,1722844141666,-500.0,0.00044109,60]
[334220737,1722844141707,-500.0,0.00044109,60]
[334220738,1722844141748,-500.0,0.00044109,60]
[334220739,1722844141791,-500.0,0.00044109,60]
[334220740,1722844141833,-500.0,0.00044109,60]
[334220741,1722844141877,-817.97,0.00044109,60]
[334220742,1722844141920,-4751.34,0.00044109,60]
[334220743,1722844141964,-19511.61,0.00044109,60]
[334220744,1722844142006,-1869.6,0.00044109,60]
[334220745,1722844142050,-8907.22,0.00044109,60]
[334220746,1722844142093,-500.0,0.00044109,60]
[334220747,1722844142143,-3836.48,0.00044109,60]
[334220748,1722844142187,-500.0,0.00044109,60]
[334220749,1722844142226,-500.0,0.00044109,60]
[334220750,1722844142266,-500.0,0.00044109,60]
[334220751,1722844142306,-500.0,0.00044109,60]
[334220752,1722844142346,-2352.6,0.00044109,60]
[334220753,1722844142390,-1299.96,0.00044109,60]
[334220754,1722844142433,-3712.48,0.00044109,60]
[334220755,1722844142485,-150.0,0.00044125,120]
[334220756,1722844142545,-1000.0,0.0004417,120]
[334220757,1722844142587,-2592.83400557,0.000442,120]
[334220758,1722844142628,-2592.83400556,0.000442,120]
[334220759,1722844142678,-2592.83400556,0.000442,120]
[334220760,1722844142718,-2592.83400556,0.000442,120]
[334220761,1722844142761,-2592.83400556,0.000442,120]
[334220762,1722844142804,-2024.0,0.00044246,60]
[334220763,1722844142848,-1000.0,0.0004425,120]
[334220764,1722844142891,-150.0,0.00044313,120]
[334220765,1722844142933,-1000.0,0.00044329,120]
[334220766,1722844142974,-500.0,0.00044383,60]
[334220767,1722844143017,-500.54971564,0.00044383,60]
[334220768,1722844143061,-500.0,0.00044383,60]
[334220769,1722844143107,-4905.833523,0.00044383,60]
[334220770,1722844143151,-500.0,0.00044383,60]
[334220771,1722844143214,-500.0,0.00044383,60]
[334220772,1722844143258,-500.0,0.00044383,60]
[334220773,1722844143303,-500.0,0.00044383,60]
[334220774,1722844143349,-500.0,0.00044383,60]
[334220775,1722844143395,-500.0,0.00044383,60]
[334220776,1722844143439,-500.0,0.00044383,60]
[334220777,1722844143484,-500.0,0.00044383,60]
[334220778,1722844143531,-500.0,0.00044383,60]
[334220779,1722844143576,-500.0,0.00044383,60]
[334220780,1722844143619,-500.0,0.00044383,60]
[334220781,1722844143664,-621.57445301,0.00044383,60]
[334220782,1722844143730,-500.0,0.00044383,60]
[334220783,1722844143776,-500.0,0.00044383,60]
[334220784,1722844143821,-500.0,0.00044383,60]
[334220785,1722844143868,-500.0,0.00044383,60]
[334220786,1722844143916,-500.0,0.00044383,60]
[334220787,1722844143963,-500.0,0.00044383,60]
[334220788,1722844144008,-500.0,0.00044383,60]
[334220789,1722844144052,-500.0,0.00044383,60]
[334220790,1722844144094,-500.0,0.00044383,60]
[334220791,1722844144137,-500.0,0.00044383,60]
[334220792,1722844144196,-500.0,0.00044383,60]
[334220793,1722844144238,-500.0,0.00044383,60]
[334220794,1722844144281,-500.0,0.00044383,60]
[334220795,1722844144326,-500.0,0.00044383,60]
[334220796,1722844144368,-500.0,0.00044383,60]
[334220797,1722844144412,-500.0,0.00044383,60]
[334220798,1722844144455,-500.0,0.00044383,60]
[334220799,1722844144497,-500.0,0.00044383,60]
[334220800,1722844144539,-637.01738876,0.00044383,60]
[334220801,1722844144582,-500.0,0.00044383,60]
[334220802,1722844144627,-500.0,0.00044383,60]
[334220803,1722844144670,-500.0,0.00044383,60]
[334220804,1722844144732,-500.0,0.00044383,60]
[334220805,1722844144775,-500.0,0.00044383,60]
[334220806,1722844144817,-500.0,0.00044383,60]
[334220807,1722844144859,-500.0,0.00044383,60]
[334220808,1722844144904,-500.0,0.00044383,60]
[334220809,1722844144948,-500.0,0.00044383,60]
[334220810,1722844144991,-500.0,0.00044383,60]
[334220811,1722844145036,-501.36109394,0.00044383,60]
[334220812,1722844145081,-500.0,0.00044383,60]
[334220813,1722844145126,-500.0,0.00044383,60]
[334220814,1722844145174,-500.0,0.00044383,60]
[334220815,1722844145239,-500.0,0.00044383,60]
[334220816,1722844145503,-500.0,0.00044383,60]
[334220817,1722844145547,-501.13903627,0.00044383,60]
[334220818,1722844145589,-500.0,0.00044383,60]
[334220819,1722844145639,-500.0,0.00044383,60]
[334220820,1722844145691,-500.0,0.00044383,60]
[334220821,1722844145755,-500.0,0.00044383,60]
[334220822,1722844145798,-500.0,0.00044383,60]
[334220823,1722844145842,-500.0,0.00044383,60]
[334220824,1722844145892,-500.0,0.00044383,60]
[334220825,1722844145936,-500.0,0.00044383,60]
[334220826,1722844145979,-500.0,0.00044383,60]
[334220827,1722844146028,-500.0,0.00044383,60]
[334220828,1722844146074,-500.0,0.00044383,60]
[334220829,1722844146122,-500.0,0.00044383,60]
[334220830,1722844146166,-500.0,0.00044383,60]
[334220831,1722844146217,-500.0,0.00044383,60]
[334220832,1722844146276,-500.0,0.00044383,60]
[334220833,1722844146322,-500.0,0.00044383,60]
[334220834,1722844146366,-500.0,0.00044383,60]
[334220835,1722844146410,-500.0,0.00044383,60]
[334220836,1722844146454,-500.0,0.00044383,60]
[334220837,1722844146502,-500.0,0.00044383,60]
[334220838,1722844146548,-500.0,0.00044383,60]
[334220839,1722844146591,-500.0,0.00044383,60]
[334220840,1722844146637,-500.0,0.00044383,60]
[334220841,1722844146682,-500.0,0.00044383,60]
[334220842,1722844146725,-500.0,0.00044383,60]
[334220843,1722844146770,-500.0,0.00044383,60]
[334220844,1722844146813,-500.0,0.00044383,60]
[334220845,1722844146857,-500.0,0.00044383,60]
[334220846,1722844146901,-500.0,0.00044383,60]
[334220847,1722844146944,-500.0,0.00044383,60]
[334220848,1722844146989,-500.0,0.00044383,60]
[334220849,1722844147033,-500.0,0.00044383,60]
[334220850,1722844147087,-500.0,0.00044383,60]
[334220851,1722844147131,-500.0,0.00044383,60]
[334220852,1722844147176,-500.0,0.00044383,60]
[334220853,1722844147220,-500.0,0.00044383,60]
[334220854,1722844147266,-500.0,0.00044383,60]
[334220855,1722844147316,-500.42240198,0.00044383,60]
[334220856,1722844147366,-500.0,0.00044383,60]
[334220857,1722844147409,-500.0,0.00044383,60]
[334220858,1722844147452,-503.86237412,0.00044383,60]
[334220859,1722844147497,-500.0,0.00044383,60]
[334220860,1722844147549,-525.5,0.00044383,60]
[334220861,1722844147591,-500.0,0.00044383,60]
[334220862,1722844147640,-1079.81,0.00044383,60]
[334220863,1722844147684,-565.09928926,0.00044383,60]
[334220864,1722844147726,-182.19269712,0.00044383,60]
[334220865,1722844147774,-500.0,0.00044383,60]
[334220866,1722844147816,-594.95932694,0.00044383,60]
[334220867,1722844147857,-500.0,0.00044383,60]
[334220868,1722844147899,-500.0,0.00044383,60]
[334220869,1722844147944,-965.1,0.00044383,60]
[334220870,1722844147993,-500.0,0.00044383,60]
[334220871,1722844148051,-514.31,0.00044383,60]
[334220872,1722844148099,-500.0,0.00044383,60]
[334220873,1722844148145,-500.0,0.00044383,60]
[334220874,1722844148188,-500.0,0.00044383,60]
[334220875,1722844148232,-513.25840981,0.00044383,60]
[334220876,1722844148275,-500.0,0.00044383,60]
[334220877,1722844148319,-500.0,0.00044383,60]
[334220878,1722844148360,-500.0,0.00044383,60]
[334220879,1722844148404,-500.0,0.00044383,60]
[334220880,1722844148447,-665.03,0.00044383,60]
[334220881,1722844148492,-500.0,0.00044383,60]
[334220882,1722844148544,-500.0,0.00044383,60]
[334220883,1722844148587,-500.0,0.00044383,60]
[334220884,1722844148634,-1235.78,0.00044383,60]
[334220885,1722844148679,-500.0,0.00044383,60]
[334220886,1722844148725,-500.0,0.00044383,60]
[334220887,1722844148770,-500.0,0.00044383,60]
[334220888,1722844148816,-634.87,0.00044383,60]
[334220889,1722844148860,-500.0,0.00044383,60]
[334220890,1722844148903,-645.01,0.00044383,60]
[334220891,1722844148952,-531.86,0.00044383,60]
[334220892,1722844149002,-1099.51,0.00044383,60]
[334220893,1722844149059,-3063.03,0.00044383,60]
[334220894,1722844149111,-555.47337961,0.00044383,60]
[334220895,1722844149157,-2292.05,0.00044383,60]
[334220896,1722844149204,-500.0,0.00044383,60]
[334220897,1722844149246,-500.0,0.00044383,60]
[334220898,1722844149294,-500.0,0.00044383,60]
[334220899,1722844149335,-500.0,0.00044383,60]
[334220900,1722844149377,-1479.31,0.00044383,60]
[334220901,1722844149418,-500.0,0.00044383,60]
[334220902,1722844149460,-1046.58,0.00044383,60]
[334220903,1722844149501,-500.0,0.00044383,60]
[334220904,1722844149549,-500.0,0.00044383,60]
[334220905,1722844149588,-500.0,0.00044383,60]
[334220906,1722844149629,-500.0,0.00044383,60]
[334220907,1722844149670,-660.02,0.00044383,60]
[334220908,1722844149710,-872.75,0.00044383,60]
[334220909,1722844149749,-500.0,0.00044383,60]
[334220910,1722844149796,-538.95225604,0.00044383,60]
[334220911,1722844149838,-500.0,0.00044383,60]
[334220912,1722844149879,-500.0,0.00044383,60]
[334220913,1722844149922,-1517.27,0.00044383,60]
[334220914,1722844149965,-594.44,0.00044383,60]
[334220915,1722844150009,-500.0,0.00044383,60]
[334220916,1722844150050,-1942.65,0.00044383,60]
[334220917,1722844150091,-501.60982581,0.00044383,60]
[334220918,1722844150137,-1605.08,0.00044383,60]
[334220919,1722844150178,-500.0,0.00044383,60]
[334220920,1722844150220,-500.0,0.00044383,60]
[334220921,1722844150504,-500.0,0.00044383,60]
[334220922,1722844150556,-992.56,0.00044383,60]
[334220923,1722844150600,-500.0,0.00044383,60]
[334220924,1722844150642,-500.0,0.00044383,60]
[334220925,1722844150685,-1503.6,0.00044383,60]
[334220926,1722844150729,-500.0,0.00044383,60]
[334220927,1722844150774,-500.0,0.00044383,60]
[334220928,1722844150817,-500.0,0.00044383,60]
[334220929,1722844150860,-500.0,0.00044383,60]
[334220930,1722844150904,-1930.09,0.00044383,60]
[334220931,1722844150948,-716.52,0.00044383,60]
[334220932,1722844150990,-500.0,0.00044383,60]
[334220933,1722844151038,-622.11,0.00044383,60]
[334220934,1722844151089,-500.0,0.00044383,60]
[334220935,1722844151136,-549.14,0.00044383,60]
[334220936,1722844151180,-1860.68,0.00044383,60]
[334220937,1722844151221,-580.4637735,0.00044383,60]
[334220938,1722844151268,-1307.65,0.00044383,60]
[334220939,1722844151309,-500.0,0.00044383,60]
[334220940,1722844151352,-560.81,0.00044383,60]
[334220941,1722844151395,-1523.29,0.00044383,60]
[334220942,1722844151440,-580.69,0.00044383,60]
[334220943,1722844151483,-776.59,0.00044383,60]
[334220944,1722844151525,-1061.98,0.00044383,60]
[334220945,1722844151568,-301.08420973,0.00044383,60]
[334220946,1722844151608,-821.08,0.00044383,60]
[334220947,1722844151648,-500.0,0.00044383,60]
[334220948,1722844151688,-368.512533,0.00044383,60]
[334220949,1722844151735,-592.67,0.00044383,60]
[334220950,1722844151777,-1849.0,0.00044383,60]
[334220951,1722844151821,-500.0,0.00044383,60]
[334220952,1722844151863,-500.0,0.00044383,60]
[334220953,1722844151907,-500.0,0.00044383,60]
[334220954,1722844151951,-500.0,0.00044383,60]
[334220955,1722844151995,-500.0,0.00044383,60]
[334220956,1722844152041,-500.0,0.00044383,60]
[334220957,1722844152089,-1270.63,0.00044383,60]
[334220958,1722844152132,-555.41,0.00044383,60]
[334220959,1722844152175,-500.0,0.00044383,60]
[334220960,1722844152218,-500.0,0.00044383,60]
[334220961,1722844152262,-956.3,0.00044383,60]
[334220962,1722844152303,-757.15,0.00044383,60]
[334220963,1722844152343,-500.0,0.00044383,60]
[334220964,1722844152386,-500.0,0.00044383,60]
[334220965,1722844152432,-500.0,0.00044383,60]
[334220966,1722844152471,-500.0,0.00044383,60]
[334220967,1722844152511,-500.0,0.00044383,60]
[334220968,1722844152549,-500.0,0.00044383,60]
[334220969,1722844152587,-1349.31,0.00044383,60]
[334220970,1722844152626,-594.41,0.00044383,60]
[334220971,1722844152664,-500.0,0.00044383,60]
[334220972,1722844152703,-500.0,0.00044383,60]
[334220973,1722844152742,-500.0,0.00044383,60]
[334220974,1722844152790,-500.0,0.00044383,60]
[334220975,1722844152831,-500.0,0.00044383,60]
[334220976,1722844152873,-2341.2,0.00044383,60]
[334220977,1722844152914,-500.0,0.00044383,60]
[334220978,1722844152954,-500.0,0.00044383,60]
[334220979,1722844153003,-500.0,0.00044383,60]
[334220980,1722844153049,-500.0,0.00044383,60]
[334220981,1722844153091,-500.0,0.00044383,60]
[334220982,1722844153136,-500.0,0.00044383,60]
[334220983,1722844153177,-500.0,0.00044383,60]